bitfinex/quotes_ETHUSD_20220115
["timestamp","ask_amount","ask_price","bid_price","bid_amount"]
[1642230177798,0.047063,3317.1,3316.9,1.48521445]
[1642230177998,0.045463,3317.0,3316.9,0.00511582]
[1642230178999,0.045463,3317.0,3316.4,0.00795793]
[1642230179199,3.54189928,3317.1,3316.9,2.954537]
[1642230179200,2.23949928,3317.1,3316.9,2.954537]
[1642230179399,1.0,3317.0,3316.9,2.954537]
[1642230179646,0.0016,3317.1,3316.9,2.954537]
[1642230179848,0.0016,3317.1,3316.9,2.95965282]
[1642230193527,0.0016,3317.1,3317.0,2.91405086]
[1642230193728,0.0016,3317.1,3316.9,2.95965282]
[1642230195356,0.0016,3317.1,3316.9,8.57225282]
[1642230195758,0.0016,3317.1,3317.0,7.41641156]
[1642230196161,0.0016,3317.1,3317.0,10.63691156]
[1642230197160,0.00227369,3318.2,3317.0,10.63691156]
[1642230197363,0.00227369,3318.2,3317.5,0.01273747]
[1642230197561,0.00170527,3318.1,3317.5,0.76621747]
[1642230197761,0.00170527,3318.1,3317.6,4.70170474]
[1642230197960,0.00113684,3318.0,3317.6,9.24660474]
[1642230198423,1.21468995,3318.4,3317.7,1.39274976]
[1642230198622,1.21468995,3318.4,3318.2,1.52202498]
[1642230198823,1.21468995,3318.4,3318.3,2.61824901]
[1642230199023,1.21468995,3318.4,3318.2,1.52202498]
[1642230199227,1.21810049,3318.4,3318.3,2.63156495]
[1642230199427,1.21810049,3318.4,3318.3,0.036536]
[1642230200227,1.21810049,3318.4,3318.2,1.52202498]
[1642230200427,1.21810049,3318.4,3318.3,2.60257273]
[1642230200628,1.21468995,3318.4,3317.9,2.84336903]
[1642230201028,0.00284211,3318.3,3317.7,2.90953184]
[1642230201428,0.00227369,3318.2,3317.7,2.90953184]
[1642230201832,0.00170527,3318.1,3317.7,2.90953184]
[1642230202030,0.00170527,3318.1,3317.7,4.41297759]
[1642230202257,2.54121779,3318.4,3317.7,4.41297759]
[1642230202258,0.00113684,3318.0,3317.7,4.41297759]
[1642230203258,0.00113684,3318.0,3317.8,2.57719674]
[1642230203458,0.00113684,3318.0,3317.9,2.72593308]
[1642230204362,0.002,3317.9,3317.8,2.57719674]
[1642230205060,0.002,3317.9,3317.6,5.74913685]
[1642230205461,1.39601977,3317.9,3317.6,5.74913685]
[1642230205902,1.39601977,3317.9,3317.6,4.54603685]
[1642230206908,0.002,3317.9,3317.6,4.54603685]
[1642230207205,0.002,3317.9,3317.7,2.72726997]
[1642230207405,0.002,3317.9,3317.7,2.7253778]
[1642230207705,0.002,3317.9,3317.6,4.54603685]
[1642230208104,0.002,3317.9,3317.6,5.75991488]
[1642230209658,0.002,3317.9,3317.6,8.75991488]
[1642230209850,0.002,3317.9,3317.6,7.54603685]
[1642230215205,0.002,3317.9,3317.8,1.23345906]
[1642230215407,0.002,3317.9,3317.6,7.54603685]
[1642230219155,0.002,3317.9,3317.7,2.57851006]
[1642230219356,0.002,3317.9,3317.6,7.57377685]
[1642230220359,0.002,3317.9,3317.7,2.57722896]
[1642230222310,0.002,3317.9,3317.7,5.15983177]
[1642230222605,0.002,3317.9,3317.7,2.57722896]
[1642230223009,0.002,3317.9,3317.7,5.18396197]
[1642230223204,0.002,3317.9,3317.7,2.57722896]
[1642230223405,0.002,3317.9,3317.7,5.17845535]
[1642230223604,0.002,3317.9,3317.7,2.57722896]
[1642230224405,0.002,3317.9,3317.8,2.57722896]
[1642230226460,0.002,3317.9,3317.7,5.98675693]
[1642230226659,0.002,3317.9,3317.7,3.33070746]
[1642230227660,0.002,3317.9,3317.8,2.57722896]
[1642230227858,1.21468995,3318.4,3317.9,1.39493529]
[1642230227859,0.96782679,3318.4,3317.9,1.39493529]
[1642230228258,0.00170527,3318.3,3317.9,1.39493529]
[1642230228701,0.00113685,3318.2,3317.9,1.39493529]
[1642230229710,0.00113685,3318.2,3317.8,2.5783658]
[1642230229901,0.00113685,3318.2,3318.0,2.57722896]
[1642230230905,0.00113685,3318.2,3317.9,1.19310701]
[1642230231903,0.00113685,3318.2,3318.0,2.57722896]
[1642230237614,0.00113685,3318.2,3318.1,2.64034359]
[1642230237808,0.00113685,3318.2,3318.1,3.79324359]
[1642230238608,0.00113685,3318.2,3318.1,7.74324359]
[1642230238807,0.00113685,3318.2,3318.1,9.28325478]
[1642230239207,0.00113685,3318.2,3318.1,9.32738878]
[1642230239852,0.00113685,3318.2,3318.1,11.90461774]
[1642230240453,0.00113685,3318.2,3318.1,29.52461774]
[1642230240653,1.75329,3320.0,3318.8,0.7532356]
[1642230240854,0.3,3319.9,3319.1,0.035461]
[1642230241054,0.00682108,3319.4,3319.1,0.035461]
[1642230241452,0.00625266,3319.3,3319.1,0.035461]
[1642230241854,1.31862801,3319.2,3319.1,0.035461]
[1642230242054,1.31862801,3319.2,3318.8,1.44015169]
[1642230242253,1.31862801,3319.2,3318.6,9.0382]
[1642230242452,0.00511581,3319.1,3318.6,9.0382]
[1642230242858,0.00454739,3319.0,3318.6,9.0382]
[1642230243255,0.00397896,3318.9,3318.6,9.0382]
[1642230243699,0.00341054,3318.8,3318.6,9.0382]
[1642230244102,0.00284212,3318.7,3318.6,9.0382]
[1642230244502,0.00511581,3318.7,3318.6,10.46414733]
[1642230248155,0.00511581,3318.7,3318.6,10.49982733]
[1642230248452,0.00511581,3318.7,3318.6,13.07651622]
[1642230249853,0.75334,3319.7,3318.6,13.07651622]
[1642230249854,1.0,3319.9,3318.7,5.75]
[1642230250057,0.78677305,3320.1,3319.2,0.00716457]
[1642230250256,1.2118,3320.8,3320.0,0.045463]
[1642230250460,0.78659289,3320.6,3320.5,0.045463]
[1642230250901,2.14640905,3320.6,3320.5,0.045463]
[1642230251902,2.14640905,3320.6,3320.3,0.027278]
[1642230252405,0.00795793,3320.5,3319.7,5.4369]
[1642230252903,0.00738951,3320.4,3319.7,5.4369]
[1642230253307,0.00682108,3320.3,3319.7,6.67322873]
[1642230253702,0.00625266,3320.2,3319.7,6.67322873]
[1642230254102,2.53815514,3320.5,3319.7,6.67322873]
[1642230254103,1.37982677,3320.1,3319.7,6.67322873]
[1642230254502,0.00511581,3320.0,3319.7,6.67322873]
[1642230254960,0.00454739,3319.9,3319.7,6.67322873]
[1642230255354,0.00397897,3319.8,3319.7,6.67322873]
[1642230258061,0.00397897,3319.8,3319.7,5.4369]
[1642230259405,0.00397897,3319.8,3319.7,4.297]
[1642230261110,0.00397897,3319.8,3319.7,7.297]
[1642230262252,0.00397897,3319.8,3319.7,3.0]
[1642230263252,1.20042461,3319.8,3319.7,3.0]
[1642230263853,2.70716742,3319.8,3319.7,3.0]
[1642230264052,3.70716742,3319.8,3319.7,3.0]
[1642230266606,2.20042461,3319.8,3319.7,3.0]
[1642230268010,1.20042461,3319.8,3319.7,3.0]
[1642230268213,2.20042461,3319.8,3319.7,3.0]
[1642230268614,1.20042461,3319.8,3319.7,3.0]
[1642230269213,1.50042461,3319.8,3319.7,3.0]
[1642230272658,4.39837049,3319.8,3319.7,3.0]
[1642230273058,4.39837049,3319.8,3318.8,0.00170527]
[1642230273059,0.00513525,3319.6,3318.8,0.00170527]
[1642230273259,0.75355,3319.3,3318.8,0.00170527]
[1642230273506,1.15956772,3318.6,3318.5,0.00341054]
[1642230274306,0.34168721,3318.6,3318.4,0.00397896]
[1642230275106,0.34168721,3318.6,3318.4,2.58091727]
[1642230275307,3.05768249,3318.5,3318.4,2.58091727]
[1642230275508,4.91445261,3318.5,3318.4,2.57693831]
[1642230275707,5.91445261,3318.5,3318.4,2.57693831]
[1642230276206,5.91445261,3318.5,3318.3,2.57693831]
[1642230276411,7.96781497,3318.4,3318.3,2.57693831]
[1642230276606,8.26781497,3318.4,3318.3,2.57693831]
[1642230276807,8.26781497,3318.4,3318.3,2.5814857]
[1642230277007,4.41781497,3318.4,3318.3,2.5814857]
[1642230277459,4.41781497,3318.4,3318.3,0.00454739]
[1642230277856,4.41781497,3318.4,3317.8,0.0073895]
[1642230278058,1.49899857,3318.0,3317.8,0.0073895]
[1642230278257,2.91252959,3317.9,3317.8,0.0073895]
[1642230278460,3.61552959,3317.9,3317.8,0.0073895]
[1642230278657,4.61552959,3317.9,3317.8,0.0073895]
[1642230279063,4.61552959,3317.9,3317.7,0.00795793]
[1642230279259,1.7538,3317.8,3317.7,0.00795793]
[1642230280661,0.7538,3317.8,3317.7,0.00795793]
[1642230280903,1.0,3317.9,3317.7,0.00795793]
[1642230281101,0.3,3317.9,3317.7,0.00795793]
[1642230282002,1.35372,3318.1,3317.7,0.00795793]
[1642230283202,2.75986235,3318.1,3317.7,0.00795793]
[1642230283604,1.0,3318.0,3317.7,0.00795793]
[1642230284308,1.0,3318.0,3317.8,1.16251841]
[1642230284761,0.6,3318.1,3317.9,0.00682108]
[1642230284960,0.6,3318.1,3317.9,0.03521708]
[1642230285156,0.3,3318.1,3317.9,0.03521708]
[1642230285356,0.3,3318.2,3318.0,0.00625266]
[1642230285556,0.34168721,3318.6,3318.0,0.00625266]
[1642230285758,1.66932442,3318.6,3318.0,0.00625266]
[1642230286056,1.96932442,3318.6,3318.0,0.00625266]
[1642230286658,1.96932442,3318.6,3317.9,0.00682108]
[1642230287158,0.78706826,3318.5,3317.9,0.00682108]
[1642230287358,1.08706826,3318.5,3317.9,0.00682108]
[1642230287560,2.38706826,3318.5,3317.9,0.00682108]
[1642230287759,1.38706826,3318.5,3317.9,0.00682108]
[1642230288059,2.38706826,3318.5,3317.9,0.00682108]
[1642230288260,2.38706826,3318.5,3318.0,2.57735968]
[1642230288702,2.38706826,3318.5,3318.1,0.00568423]
[1642230291507,2.38706826,3318.5,3317.9,0.00682108]
[1642230291708,0.75364,3318.4,3317.9,0.00682108]
[1642230292166,1.75364,3318.4,3317.9,0.00682108]
[1642230292354,0.75364,3318.4,3317.9,0.00682108]
[1642230292555,1.75364,3318.4,3317.9,0.00682108]
[1642230293656,2.38706826,3318.5,3317.9,0.00682108]
[1642230293856,1.38706826,3318.5,3317.9,0.00682108]
[1642230294057,2.38706826,3318.5,3317.9,0.00682108]
[1642230294355,2.85725131,3318.4,3317.9,0.00682108]
[1642230294556,1.0,3318.3,3317.9,0.00682108]
[1642230294760,1.75367,3318.3,3317.9,0.00682108]
[1642230294956,2.35367,3318.3,3317.9,0.00682108]
[1642230296004,1.80762,3318.1,3317.9,0.00682108]
[1642230296202,0.75375,3318.0,3317.9,0.00682108]
[1642230296402,1.95961681,3318.0,3317.9,0.00682108]
[1642230296602,3.25961681,3318.0,3317.9,0.00682108]
[1642230299407,2.50586681,3318.0,3317.9,0.00682108]
[1642230299660,1.50586681,3318.0,3317.9,0.00682108]
[1642230299854,2.50586681,3318.0,3317.9,0.00682108]
[1642230300059,1.50586681,3318.0,3317.9,0.00682108]
[1642230300256,1.20586681,3318.0,3317.9,0.03475608]
[1642230301058,1.95959681,3318.0,3317.9,2.58427015]
[1642230301657,1.95959681,3318.0,3317.9,0.00682108]
[1642230301860,2.95959681,3318.0,3317.9,0.00682108]
[1642230302457,3.25959681,3318.0,3317.9,0.00682108]
[1642230302662,3.55959681,3318.0,3317.9,0.00682108]
[1642230302858,6.43043247,3318.0,3317.9,0.00682108]
[1642230303058,3.55959681,3318.0,3317.9,0.00682108]
[1642230303258,6.42745968,3318.0,3317.9,0.00682108]
[1642230304511,6.42745968,3318.0,3316.9,8.28100746]
[1642230304512,6.5039247,3317.9,3316.9,8.28100746]
[1642230304708,0.75401,3317.4,3316.9,8.28100746]
[1642230305009,3.47481045,3317.3,3317.0,0.00511581]
[1642230305507,1.75144157,3317.1,3317.0,0.00511581]
[1642230305710,2.87764157,3317.1,3317.0,0.00511581]
[1642230305909,5.75261136,3317.1,3317.0,0.00511581]
[1642230306109,3.85355177,3317.1,3316.8,0.00625266]
[1642230306309,1.0,3317.0,3316.8,0.00625266]
[1642230306509,1.0,3317.0,3316.2,0.0096632]
[1642230306909,1.0,3317.0,3316.1,1.33059158]
[1642230307178,0.00397896,3316.9,3316.1,1.33059158]
[1642230307368,0.00397896,3316.9,3316.4,0.039989]
[1642230307569,2.02735177,3317.1,3316.4,0.039989]
[1642230307570,0.00341054,3316.8,3316.4,0.039989]
[1642230307969,0.00284212,3316.7,3316.4,0.039989]
[1642230308169,0.00284212,3316.7,3316.5,0.033426]
[1642230308369,0.00227369,3316.6,3316.5,0.033426]
[1642230309471,0.00227369,3316.6,3316.5,3.033426]
[1642230309673,0.0764579,3318.0,3316.7,0.00454738]
[1642230309674,1.50762,3318.0,3316.7,0.00454738]
[1642230309870,1.50762,3318.0,3317.0,0.045463]
[1642230310276,0.7538,3317.9,3317.7,0.045463]
[1642230310473,0.7538,3317.9,3317.5,0.045463]
[1642230310674,1.21026201,3317.7,3317.1,1.1100151]
[1642230311105,0.00568424,3317.6,3317.1,1.1100151]
[1642230311314,0.75950424,3317.6,3316.8,12.221]
[1642230311508,0.00511582,3317.5,3316.8,12.221]
[1642230311808,0.00454739,3317.4,3316.8,12.221]
[1642230312213,0.00397897,3317.3,3316.8,12.221]
[1642230312608,0.00341055,3317.2,3316.8,13.61012155]
[1642230312811,0.30341055,3317.2,3316.8,13.61012155]
[1642230313008,0.00284212,3317.1,3316.8,13.61012155]
[1642230313408,0.0022737,3317.0,3316.8,13.61012155]
[1642230313609,0.0022737,3317.0,3316.9,0.037094]
[1642230313809,0.3,3317.2,3316.8,13.61012155]
[1642230314010,1.80556869,3317.6,3316.8,14.92451003]
[1642230314210,0.00170527,3316.9,3316.8,14.92451003]
[1642230314655,0.00170527,3316.9,3316.8,13.61012155]
[1642230314856,0.00170527,3316.9,3316.8,13.65558455]
[1642230315757,0.00170527,3316.9,3316.8,16.23360248]
[1642230316758,0.00170527,3316.9,3316.8,19.32059715]
[1642230318258,1.18949659,3317.7,3317.6,0.21829473]
[1642230318509,0.75372,3318.2,3317.6,0.21829473]
[1642230318910,0.00682109,3318.1,3317.6,0.21829473]
[1642230319310,0.00625266,3318.0,3317.6,0.21829473]
[1642230319509,1.4712736,3318.0,3317.7,2.57801793]
[1642230319709,0.00568424,3317.9,3317.7,2.57801793]
[1642230320110,0.00511582,3317.8,3317.7,2.57801793]
[1642230320310,0.00511582,3317.8,3317.7,4.10090529]
[1642230322860,0.00511582,3317.8,3317.7,2.57801793]
[1642230327005,0.00511582,3317.8,3317.6,2.79631266]
[1642230327406,0.00454739,3317.7,3317.6,2.79631266]
[1642230327908,0.00454739,3317.7,3317.6,0.21829473]
[1642230329657,0.75833739,3317.7,3317.6,0.21829473]
[1642230329857,0.75833739,3317.7,3317.6,3.21829473]
[1642230331064,1.05833739,3317.7,3317.6,3.21829473]
[1642230331660,0.30454739,3317.7,3317.6,3.21829473]
[1642230331861,0.00454739,3317.7,3317.6,3.21829473]
[1642230334607,1.00454739,3317.7,3317.6,3.21829473]
[1642230334807,0.00454739,3317.7,3317.6,3.21829473]
[1642230335009,1.00454739,3317.7,3317.6,3.21829473]
[1642230335508,0.00454739,3317.7,3317.6,3.21829473]
[1642230335907,0.00454739,3317.7,3317.6,7.04356677]
[1642230336109,0.00454739,3317.7,3317.6,4.40287567]
[1642230337157,0.00454739,3317.7,3317.6,3.24725873]
[1642230338866,0.00454739,3317.7,3317.6,3.21829473]
[1642230344219,0.90454739,3318.2,3317.6,3.21829473]
[1642230344417,0.3,3318.2,3317.6,3.21829473]
[1642230344655,0.0022737,3318.1,3317.6,3.21829473]
[1642230344855,0.0022737,3318.1,3317.6,3.25005473]
[1642230345056,0.00170527,3318.0,3317.7,0.037258]
[1642230345258,0.00170527,3318.0,3317.8,0.037443]
[1642230345457,0.00113685,3317.9,3317.8,0.037443]
[1642230345858,0.00113685,3317.9,3317.8,1.58313254]
[1642230346057,0.00113685,3317.9,3317.8,1.54568954]
[1642230346958,0.00113685,3317.9,3317.6,8.85455473]
[1642230347158,0.00113685,3317.9,3317.6,8.82279473]
[1642230347558,0.75487685,3317.9,3317.6,8.82279473]
[1642230347759,0.75487685,3317.9,3317.6,7.61059473]
[1642230348417,0.00113685,3317.9,3317.6,7.61059473]
[1642230350009,0.00113685,3317.9,3317.6,7.64330573]
[1642230350308,0.00113685,3317.9,3317.7,0.038061]
[1642230350710,0.00113685,3317.9,3317.8,0.038289]
[1642230351915,0.00113685,3317.9,3317.6,7.64330573]
[1642230352458,0.00113685,3317.9,3317.6,7.61059473]
[1642230352857,0.00113685,3317.9,3317.6,8.83542471]
[1642230353058,0.00113685,3317.9,3317.7,0.03616]
[1642230353361,0.00113685,3317.9,3317.8,3.387275]
[1642230353563,0.00113685,3317.9,3317.8,6.16764143]
[1642230354359,0.00113685,3317.9,3317.8,6.92110673]
[1642230354561,0.00113685,3317.9,3317.8,8.05860673]
[1642230355912,0.00113685,3317.9,3317.8,7.30514143]
[1642230356505,0.00113685,3317.9,3317.8,9.88245401]
[1642230358306,0.00113685,3317.9,3317.8,10.63587251]
[1642230361458,0.00113685,3317.9,3317.8,6.49517901]
[1642230361657,0.00113685,3317.9,3317.8,3.71481258]
[1642230362265,0.00113685,3317.9,3317.8,1.1375]
[1642230362757,0.00113685,3317.9,3317.8,1.171717]
[1642230364208,0.00113685,3317.9,3317.8,3.85795322]
[1642230364812,0.00113685,3317.9,3317.8,5.36169706]
[1642230366009,0.00113685,3317.9,3317.8,6.11512886]
[1642230367657,0.00113685,3317.9,3317.8,5.36169706]
[1642230367856,0.00113685,3317.9,3317.8,2.67546084]
[1642230369458,0.00113685,3317.9,3317.8,2.64124384]
[1642230370458,0.00113685,3317.9,3317.8,2.64790256]
[1642230371521,0.00113685,3317.9,3317.8,2.67948456]
[1642230371719,0.00113685,3317.9,3317.8,2.64790256]
[1642230373119,0.00113685,3317.9,3317.8,2.67739656]
[1642230373323,0.00113685,3317.9,3317.8,2.67687856]
[1642230373920,0.00113685,3317.9,3317.8,2.64790256]
[1642230375264,0.00113685,3317.9,3317.8,2.64124384]
[1642230375962,0.75356,3318.8,3318.2,1.40328761]
[1642230376360,0.00397897,3318.4,3318.2,1.40328761]
[1642230376760,0.00341054,3318.3,3318.2,1.40328761]
[1642230378808,0.00341054,3318.3,3317.8,2.66852184]
[1642230379008,0.00341054,3318.3,3317.8,1.164778]
[1642230379209,0.00284212,3318.2,3317.9,0.03743]
[1642230379409,0.00284212,3318.2,3317.8,1.164778]
[1642230379609,0.0022737,3318.1,3317.8,1.164778]
[1642230380009,0.00170527,3318.0,3317.8,1.1375]
[1642230380210,0.00170527,3318.0,3317.9,1.1144756]
[1642230380414,1.50058653,3318.7,3317.9,1.1144756]
[1642230380812,0.00511581,3318.6,3317.9,1.1144756]
[1642230381213,0.00454739,3318.5,3317.9,1.1144756]
[1642230381713,0.00397897,3318.4,3318.0,0.036098]
[1642230381914,0.00397897,3318.4,3317.9,1.1417536]
[1642230382160,0.00341054,3318.3,3317.9,1.1144756]
[1642230382561,0.00284212,3318.2,3317.9,1.1144756]
[1642230382966,0.0022737,3318.1,3317.9,1.1144756]
[1642230383361,1.21041903,3318.6,3317.9,1.1144756]
[1642230383362,0.00170527,3318.0,3317.9,1.1144756]
[1642230383964,0.00170527,3318.0,3317.9,1.1599386]
[1642230388112,0.00170527,3318.0,3317.9,1.1144756]
[1642230395815,0.00170527,3318.0,3317.9,1.1465276]
[1642230397863,0.00170527,3318.0,3317.9,3.72395571]
[1642230399864,0.00170527,3318.0,3317.9,6.31488087]
[1642230400663,0.00170527,3318.0,3317.9,3.72395571]
[1642230401811,0.00170527,3318.0,3317.9,3.69190371]
[1642230402212,0.00170527,3318.0,3317.9,3.72080971]
[1642230402611,0.00170527,3318.0,3317.9,3.69190371]
[1642230402812,0.00170527,3318.0,3317.9,3.72012771]
[1642230403215,0.00170527,3318.0,3317.9,6.31292841]
[1642230403413,0.00170527,3318.0,3317.9,3.72012771]
[1642230404019,0.00170527,3318.0,3317.9,6.30097935]
[1642230404413,0.00170527,3318.0,3317.9,3.72012771]
[1642230404671,0.00170527,3318.0,3317.9,6.38657212]
[1642230405572,5.27e-06,3318.0,3317.9,7.62537652]
[1642230405774,5.27e-06,3318.0,3317.9,25.24537652]
[1642230406373,1.76636019,3320.1,3318.6,0.75319]
[1642230406575,1.11123377,3320.0,3319.9,0.045463]
[1642230406775,1.12260224,3320.0,3319.9,0.045463]
[1642230407572,1.42260224,3320.0,3319.9,0.045463]
[1642230408175,0.31136847,3320.0,3319.9,0.045463]
[1642230408609,0.31136847,3320.0,3319.5,1.38120033]
[1642230408812,0.31136847,3320.0,3319.5,1.35392233]
[1642230409009,0.01080005,3319.9,3319.5,1.35392233]
[1642230409310,0.01023163,3319.8,3319.5,1.35392233]
[1642230409811,0.0096632,3319.7,3319.5,1.35392233]
[1642230410010,0.0096632,3319.7,3319.3,0.027278]
[1642230410209,0.00909478,3319.6,3319.3,0.027278]
[1642230410610,0.00852635,3319.5,3319.3,0.027278]
[1642230410811,0.00852635,3319.5,3319.2,0.027278]
[1642230411009,0.75329,3319.9,3319.5,2.99204207]
[1642230411415,0.0022737,3319.8,3319.5,2.99204207]
[1642230411811,0.00170527,3319.7,3319.5,2.99204207]
[1642230412268,0.75449685,3319.6,3319.5,2.99204207]
[1642230413365,0.00113685,3319.6,3319.5,2.99204207]
[1642230419512,0.75449685,3319.6,3319.5,2.99204207]
[1642230420964,0.00113685,3319.6,3319.5,2.99204207]
[1642230422164,0.00113685,3319.6,3319.5,5.64131357]
[1642230422366,0.00113685,3319.6,3319.5,4.13717139]
[1642230423417,0.00113685,3319.6,3319.5,2.99204207]
[1642230424711,2.85878373,3319.6,3319.5,2.99204207]
[1642230425110,3.85878373,3319.6,3319.5,2.99204207]
[1642230425310,2.85878373,3319.6,3319.5,2.99204207]
[1642230425512,3.85878373,3319.6,3319.5,2.99204207]
[1642230426711,1.00113685,3319.6,3319.5,2.99204207]
[1642230427162,0.00113685,3319.6,3319.5,2.99204207]
[1642230430163,0.00113685,3319.6,3319.5,4.16780908]
[1642230430564,0.00113685,3319.6,3319.5,2.99204207]
[1642230432314,0.75451685,3319.6,3319.5,2.99204207]
[1642230435762,0.00113685,3319.6,3319.5,2.99204207]
[1642230437762,0.75449685,3319.6,3319.5,2.99204207]
[1642230441013,0.00113685,3319.6,3319.5,2.99204207]
[1642230442563,2.35332,3319.9,3319.5,2.99204207]
[1642230442867,0.0022737,3319.8,3319.5,2.99204207]
[1642230443264,2.35332,3319.9,3319.5,2.99204207]
[1642230443265,0.00170527,3319.7,3319.5,2.99204207]
[1642230443764,0.00113685,3319.6,3319.5,2.99204207]
[1642230444964,0.00113685,3319.6,3319.5,4.09090319]
[1642230451663,0.00113685,3319.6,3319.5,2.99204207]
[1642230454114,1.00113685,3319.6,3319.5,2.99204207]
[1642230454314,3.83859096,3319.6,3319.5,2.99204207]
[1642230454516,1.00113685,3319.6,3319.5,2.99204207]
[1642230454915,2.83536236,3319.6,3319.5,2.99204207]
[1642230455116,3.83536236,3319.6,3319.5,2.99204207]
[1642230455616,1.00113685,3319.6,3319.5,2.99204207]
[1642230456016,0.00113685,3319.6,3319.5,2.99204207]
[1642230457177,2.84841367,3319.6,3319.5,2.99204207]
[1642230457577,3.84841367,3319.6,3319.5,2.99204207]
[1642230457978,5.15,3319.5,3318.4,1.2194]
[1642230458179,0.75355,3319.1,3318.4,1.2194]
[1642230458383,1.27375941,3318.8,3318.4,1.2194]
[1642230458679,1.27375941,3318.8,3318.7,4.52387896]
[1642230458878,1.0,3318.9,3318.7,4.52387896]
[1642230459279,0.75356,3318.8,3318.7,4.5199]
[1642230459579,1.0,3319.1,3318.7,4.52387896]
[1642230459880,1.0,3319.1,3318.8,0.00341054]
[1642230460083,1.3,3319.1,3318.8,0.00341054]
[1642230460479,2.0535,3319.1,3318.8,0.00341054]
[1642230460935,2.87785496,3319.0,3318.8,0.00341054]
[1642230461115,1.0,3318.9,3318.8,0.00341054]
[1642230461515,2.0535,3319.1,3318.8,0.00341054]
[1642230461717,2.89365816,3319.0,3318.8,0.00341054]
[1642230462118,1.0,3318.9,3318.8,0.00341054]
[1642230463318,1.0,3318.9,3318.8,3.00341054]
[1642230465567,1.28596515,3319.0,3318.8,3.00341054]
[1642230466067,2.0535,3319.1,3318.9,0.00284212]
[1642230471316,1.3,3319.1,3319.0,0.033707]
[1642230471520,0.3,3319.1,3319.0,0.033707]
[1642230471715,0.3,3319.1,3319.0,0.03598069]
[1642230472168,1.35345,3319.4,3319.2,1.33158632]
[1642230472369,1.35345,3319.4,3319.3,0.045463]
[1642230472768,1.35345,3319.4,3319.2,1.33158632]
[1642230473771,1.23991,3319.4,3319.2,1.33158632]
[1642230474174,1.22473,3319.4,3319.2,1.33158632]
[1642230474972,0.3,3319.4,3319.2,1.33158632]
[1642230475372,0.3,3319.5,3319.2,1.33158632]
[1642230475571,1.05338,3319.7,3319.2,1.33158632]
[1642230476216,1.35338,3319.7,3319.2,1.33158632]
[1642230482367,2.26059,3319.5,3319.0,0.00227369]
[1642230482566,3.26059,3319.5,3319.0,0.00227369]
[1642230482770,0.3,3319.4,3318.9,0.00284212]
[1642230482969,0.6,3319.4,3318.9,0.00284212]
[1642230483274,1.6,3319.4,3318.9,0.00284212]
[1642230483521,1.6,3319.4,3318.9,1.45022919]
[1642230483922,2.35352,3319.4,3319.0,0.00227369]
[1642230485722,2.35352,3319.4,3318.9,0.00284212]
[1642230486222,3.10709,3319.4,3318.9,0.00284212]
[1642230487026,5.46774536,3319.4,3318.9,0.00284212]
[1642230488066,6.25463083,3319.4,3318.9,0.00284212]
[1642230491217,4.65463083,3319.4,3318.9,0.00284212]
[1642230491416,4.65463083,3319.4,3318.9,0.03267212]
[1642230491616,4.65463083,3319.4,3318.9,0.00284212]
[1642230491818,3.90106083,3319.4,3319.0,0.00227369]
[1642230492018,3.90106083,3319.4,3318.9,0.00284212]
[1642230492620,1.0,3319.3,3318.9,0.00284212]
[1642230493021,1.05354,3319.1,3318.9,0.00284212]
[1642230493222,1.35354,3319.1,3318.9,0.00284212]
[1642230494122,2.35354,3319.1,3318.9,0.00284212]
[1642230494323,1.35354,3319.1,3318.9,0.00284212]
[1642230494970,2.35354,3319.1,3318.9,0.00284212]
[1642230496370,1.35354,3319.1,3318.9,0.00284212]
[1642230496970,0.6,3319.1,3318.9,0.00284212]
[1642230497171,0.3,3319.1,3318.9,0.00284212]
[1642230497378,1.6,3319.3,3318.9,0.00284212]
[1642230498518,1.35351,3319.1,3318.9,0.00284212]
[1642230500518,2.35351,3319.1,3318.9,0.00284212]
[1642230500722,1.35351,3319.1,3318.9,0.00284212]
[1642230500919,2.35351,3319.1,3318.9,0.00284212]
[1642230501118,1.6,3319.1,3318.9,0.00284212]
[1642230501318,0.6,3319.1,3318.9,0.00284212]
[1642230501517,1.3,3319.3,3318.9,0.00284212]
[1642230501719,1.0,3319.3,3319.2,0.045463]
[1642230502018,0.78688547,3319.4,3319.2,0.04659985]
[1642230502267,0.78688547,3319.4,3319.3,0.040276]
[1642230502471,1.08688547,3319.4,3319.3,0.040276]
[1642230502767,1.08688547,3319.4,3319.2,0.00113685]
[1642230503167,1.08688547,3319.4,3319.1,0.00170527]
[1642230503568,1.08688547,3319.4,3319.2,0.036731]
[1642230504571,1.08688547,3319.4,3319.1,0.00170527]
[1642230504768,1.08688547,3319.4,3319.1,0.02898327]
[1642230504975,1.08688547,3319.4,3319.1,0.00170527]
[1642230505171,1.08688547,3319.4,3319.2,0.03651785]
[1642230505372,1.08688547,3319.4,3319.2,0.035381]
[1642230507419,1.08688547,3319.4,3318.9,2.5797937]
[1642230507818,0.00113685,3319.3,3318.9,2.5797937]
[1642230508919,0.00113685,3319.3,3318.8,3.0]
[1642230509320,0.00113685,3319.3,3318.9,0.00113685]
[1642230509768,0.75349,3319.2,3318.9,0.00113685]
[1642230510171,2.35349,3319.2,3318.9,0.00113685]
[1642230510368,1.35349,3319.2,3318.9,0.00113685]
[1642230510569,2.35349,3319.2,3318.9,0.00113685]
[1642230510772,1.35349,3319.2,3318.9,0.00113685]
[1642230510968,2.35349,3319.2,3318.9,0.00113685]
[1642230514117,1.35349,3319.2,3318.9,0.00113685]
[1642230515516,0.3,3319.2,3318.9,0.00113685]
[1642230515717,0.3,3319.1,3318.9,0.00113685]
[1642230515917,0.30113685,3319.3,3318.9,0.00113685]
[1642230516119,0.00113685,3319.3,3318.9,0.00113685]
[1642230524529,0.75349,3319.2,3318.9,0.00113685]
[1642230525368,1.05349,3319.2,3318.9,0.00113685]
[1642230525671,1.35349,3319.2,3318.9,0.00113685]
[1642230526772,0.75349,3319.2,3318.9,0.00113685]
[1642230527373,1.05349,3319.2,3318.9,0.00113685]
[1642230527573,2.35349,3319.2,3318.9,0.00113685]
[1642230527872,2.86659,3319.2,3318.9,0.00113685]
[1642230530018,2.63259,3319.2,3318.9,0.00113685]
[1642230530719,2.35349,3319.2,3318.9,0.00113685]
[1642230532769,2.3607187,3319.1,3318.9,0.00113685]
[1642230533170,3.3607187,3319.1,3318.9,0.00113685]
[1642230534174,4.1,3319.0,3318.8,3.0]
[1642230534371,6.4004687,3319.1,3318.8,3.0]
[1642230534372,4.749243,3318.9,3318.8,3.0]
[1642230534573,5.349243,3318.9,3318.8,3.0]
[1642230534774,2.26145,3318.4,3317.7,5.4482]